[Event "FIDE World Rapid-ch Open 2018"]
[White "Tukhaev, Adam"]
[Black "Van Foreest, Jorden"]
[Site "St. Petersburg"]
[Round "15.56"]
[Annotator "ChessBase"]
[Result "1-0"]
[Date "2018.12.28"]
[WhiteElo "2527"]
[BlackElo "2614"]
[PlyCount "215"]
[TimeControl "900+10"]

1. e4 {[%emt 0:0:0]} c5 {[%emt 0:0:0]} 2. Nf3 {[%emt 0:0:0]} d6 {[%emt 0:0:0]} 3. d4 {[%emt 0:0:0]} cxd4 {[%emt 0:0:2]} 4. Nxd4 {[%emt 0:0:3]} Nf6 {[%emt 0:0:3]} 5. Nc3 {[%emt 0:0:2]} a6 {[%emt 0:0:1]} 6. h3 {[%emt 0:0:17]
} g6 {[%emt 0:0:7]} 7. g4 {[%emt 0:0:40]} Nc6 {[%emt 0:0:3]} 8. Be3 {[%emt 0:1:24]} Nxd4 {[%emt 0:0:4]} 9. Bxd4 {[%emt 0:0:12]} Bh6 {[%emt 0:0:3]
} 10. Qe2 {[%emt 0:1:55]} 0-0 {[%emt 0:0:18]} 11. Bg2 {[%emt 0:0:0]} e5 {[%emt 0:0:22]} 12. Be3 {[%emt 0:0:2]} Bxe3 {[%emt 0:0:3]} 13. Qxe3 {[%emt 0:3:4]} b5 {[%emt 0:0:2]} 14. 0-0 {[%emt 0:0:41]} Be6 {[%emt 0:0:21]
} 15. a3 {[%emt 0:0:35]} Qc7 {[%emt 0:0:29]} 16. Rad1 {[%emt 0:0:0]} Nd7 {[%emt 0:2:45]} 17. Qd2 {[%emt 0:4:8]} Nb6 {[%emt 0:0:3]} 18. Qxd6 {[%emt 0:0:1]} Qxd6 {[%emt 0:0:7]} 19. Rxd6 {[%emt 0:0:2]} Nc4 {[%emt 0:0:2]
} 20. Rc6 {[%emt 0:0:2]} Nxb2 {[%emt 0:0:40]} 21. Rb1 {[%emt 0:0:1]
} Nc4 {[%emt 0:0:38]} 22. a4 {[%emt 0:0:1]} Na3 {[%emt 0:0:0]} 23. Rb2 {[%emt 0:0:2]} Nc4 {[%emt 0:1:35]} 24. Rb4 {[%emt 0:1:9]} bxa4 {[%emt 0:1:27]} 25. Nd5 {[%emt 0:1:30]} Na3 {[%emt 0:0:53]} 26. Rxa4 {[%emt 0:0:16]
} Nb5 {[%emt 0:0:2]} 27. c4 {[%emt 0:0:38]} Nd4 {[%emt 0:0:0]} 28. Rcxa6 {[%emt 0:0:2]} Rab8 {[%emt 0:0:4]} 29. Rb6 {[%emt 0:0:12]} Kg7 {[%emt 0:1:23]} 30. c5 {[%emt 0:0:5]} Rbc8 {[%emt 0:0:2]} 31. Rc4 {[%emt 0:0:14]
} Bd7 {[%emt 0:0:8]} 32. Kh2 {[%emt 0:0:28]} Ra8 {[%emt 0:0:0]} 33. c6 {[%emt 0:0:11]} Nxc6 {[%emt 0:0:15]} 34. Rbxc6 {[%emt 0:0:4]} Bxc6 {[%emt 0:0:1]} 35. Rxc6 {[%emt 0:0:1]} Rfc8 {[%emt 0:0:2]} 36. Rxc8 {[%emt 0:0:7]} Rxc8 {[%emt 0:0:1]} 37. g5 {[%emt 0:0:17]} h6 {[%emt 0:0:0]} 38. h4 {[%emt 0:0:15]} hxg5 {[%emt 0:0:14]} 39. hxg5 {[%emt 0:0:2]} Rh8+ {[%emt 0:0:2]} 40. Kg3 {[%emt 0:0:1]} Rh5 {[%emt 0:0:1]} 41. Kg4 {[%emt 0:0:1]
} Rh2 {[%emt 0:0:1]} 42. Ne3 {[%emt 0:0:1]} Kf8 {[%emt 0:0:0]} 43. Kg3 {[%emt 0:0:7]} Rh5 {[%emt 0:0:1]} 44. Kg4 {[%emt 0:0:1]} Rh2 {[%emt 0:0:1]} 45. f3 {[%emt 0:0:1]} Ke7 {[%emt 0:0:15]} 46. Kg3 {[%emt 0:0:0]} Rh5 {[%emt 0:0:1]} 47. Kg4 {[%emt 0:0:1]} Rh2 {[%emt 0:0:4]} 48. Bf1 {[%emt 0:0:2]} Rh1 {[%emt 0:0:1]} 49. Kg3 {[%emt 0:0:27]} Rh5 {[%emt 0:0:4]
} 50. Nd5+ {[%emt 0:0:26]} Kd6 {[%emt 0:0:1]} 51. Kg4 {[%emt 0:0:3]
} Rh1 {[%emt 0:0:2]} 52. Bg2 {[%emt 0:0:2]} Rh2 {[%emt 0:0:0]} 53. Ne3 {[%emt 0:0:3]} Ke7 {[%emt 0:0:5]} 54. Bh3 {[%emt 0:0:7]} Rh1 {[%emt 0:0:2]} 55. Nc4 {[%emt 0:0:17]} f6 {[%emt 0:3:54]} 56. gxf6+ {[%emt 0:0:3]
} Kxf6 {[%emt 0:0:2]} 57. Ne3 {[%emt 0:0:16]} Rb1 {[%emt 0:0:0]} 58. Nd5+ {[%emt 0:0:5]} Kg7 {[%emt 0:0:7]} 59. Kg5 {[%emt 0:0:10]} Rc1 {[%emt 0:0:19]} 60. Bg4 {[%emt 0:0:5]} Rc6 {[%emt 0:0:10]} 61. Bh3 {[%emt 0:0:47]
} Kf7 {[%emt 0:1:10]} 62. Ne3 {[%emt 0:0:4]} Rc1 {[%emt 0:0:0]} 63. Bf1 {[%emt 0:1:9]} Kg7 {[%emt 0:0:14]} 64. Bg2 {[%emt 0:0:21]} Re1 {[%emt 0:0:39]} 65. Ng4 {[%emt 0:0:3]} Rg1 {[%emt 0:0:2]} 66. Bh3 {[%emt 0:0:6]
} Rg3 {[%emt 0:0:10]} 67. Bf1 {[%emt 0:0:17]} Rxf3 {[%emt 0:0:0]} 68. Bc4 {[%emt 0:0:1]} Rg3 {[%emt 0:1:7]} 69. Kh4 {[%emt 0:0:17]} Rg1 {[%emt 0:0:12]} 70. Nxe5 {[%emt 0:0:5]} Rh1+ {[%emt 0:0:13]} 71. Kg4 {[%emt 0:0:7]
} Kf6 {[%emt 0:0:19]} 72. Nf3 {[%emt 0:0:1]} Rh5 {[%emt 0:0:0]} 73. Kf4 {[%emt 0:0:8]} Ke7 {[%emt 0:0:12]} 74. e5 {[%emt 0:0:28]} Rh1 {[%emt 0:0:1]} 75. Bd3 {[%emt 0:0:22]} Kf7 {[%emt 0:0:5]} 76. Ng5+ {[%emt 0:0:42]
} Kg7 {[%emt 0:0:1]} 77. Ne4 {[%emt 0:0:1]} Rd1 {[%emt 0:0:0]} 78. Bc4 {[%emt 0:0:12]} Rc1 {[%emt 0:0:2]} 79. Be2 {[%emt 0:0:9]} Re1 {[%emt 0:0:4]} 80. Bg4 {[%emt 0:0:12]} Kf7 {[%emt 0:0:5]} 81. Ng5+ {[%emt 0:0:41]
} Ke7 {[%emt 0:0:1]} 82. Nf3 {[%emt 0:0:1]} Ra1 {[%emt 0:0:0]} 83. Ke4 {[%emt 0:0:34]} Rd1 {[%emt 0:0:31]} 84. Nd4 {[%emt 0:0:3]} Rg1 {[%emt 0:0:5]} 85. Nc6+ {[%emt 0:0:7]} Kf7 {[%emt 0:0:1]} 86. Bc8 {[%emt 0:0:29]
} Rd1 {[%emt 0:0:13]} 87. Nd4 {[%emt 0:0:4]} Rc1 {[%emt 0:0:0]} 88. Be6+ {[%emt 0:0:8]} Ke7 {[%emt 0:0:4]} 89. Kd5 {[%emt 0:0:2]} Rd1 {[%emt 0:0:17]} 90. Bg4 {[%emt 0:0:1]} Rd2 {[%emt 0:0:1]} 91. Kc5 {[%emt 0:0:22]
} Rd3 {[%emt 0:0:5]} 92. Nc6+ {[%emt 0:0:27]} Kf7 {[%emt 0:0:0]} 93. Be2 {[%emt 0:0:1]} Re3 {[%emt 0:0:35]} 94. Bc4+ {[%emt 0:0:2]} Kg7 {[%emt 0:0:5]} 95. Kd6 {[%emt 0:0:11]} g5 {[%emt 0:0:2]} 96. e6 {[%emt 0:0:30]
} Kf6 {[%emt 0:0:3]} 97. Nb4 {[%emt 0:0:13]} Re1 {[%emt 0:0:0]} 98. Nd5+ {[%emt 0:0:3]} Kg7 {[%emt 0:0:13]} 99. e7 {[%emt 0:0:5]} g4 {[%emt 0:0:8]} 100. Nc7 {[%emt 0:0:28]} g3 {[%emt 0:0:1]} 101. e8=Q {[%emt 0:0:13]
} Rxe8 {[%emt 0:0:2]} 102. Nxe8+ {[%emt 0:0:1]} Kf8 {[%emt 0:0:0]} 103. Nc7 {[%emt 0:0:11]} g2 {[%emt 0:0:2]} 104. Ne6+ {[%emt 0:0:1]
} Ke8 {[%emt 0:0:5]} 105. Bb5+ {[%emt 0:0:6]} Kf7 {[%emt 0:0:0]} 106. Ng5+ {[%emt 0:0:1]} Kf6 {[%emt 0:0:5]} 107. Nf3 {[%emt 0:0:10]} Kf5 {[%emt 0:0:0]
} 108. Nh4+ {[%emt 0:0:0]} 1-0

[Event "FIDE World Rapid-ch Open 2018"]
[White "Tregubov, Pavel V."]
[Black "Maghsoodloo, Parham"]
[Site "St. Petersburg"]
[Round "15.57"]
[Annotator "ChessBase"]
[Result "1-0"]
[Date "2018.12.28"]
[WhiteElo "2592"]
[BlackElo "2688"]
[PlyCount "129"]
[TimeControl "900+10"]

1. d4 {[%emt 0:0:0]} g6 {[%emt 0:0:0]} 2. c4 {[%emt 0:0:0]} Bg7 {[%emt 0:0:0]} 3. Nf3 {[%emt 0:0:0]} e6 {[%emt 0:0:0]} 4. g3 {[%emt 0:0:0]} Ne7 {[%emt 0:0:0]} 5. Bg2 {[%emt 0:0:0]} 0-0 {[%emt 0:0:1]} 6. 0-0 {[%emt 0:0:0]} d5 {[%emt 0:0:1]} 7. Bf4 {[%emt 0:2:44]} Nbc6 {[%emt 0:0:34]} 8. Na3 {[%emt 0:1:30]} a6 {[%emt 0:0:7]} 9. Rc1 {[%emt 0:0:32]} h6 {[%emt 0:0:0]} 10. h4 {[%emt 0:0:12]} dxc4 {[%emt 0:0:36]} 11. Nxc4 {[%emt 0:0:4]} Nd5 {[%emt 0:0:4]} 12. Bd2 {[%emt 0:0:13]} Nde7 {[%emt 0:0:53]} 13. e3 {[%emt 0:0:8]
} Nf5 {[%emt 0:0:22]} 14. Qe2 {[%emt 0:0:22]} Qe7 {[%emt 0:0:0]} 15. Nfe5 {[%emt 0:0:56]} Nxe5 {[%emt 0:0:46]} 16. Nxe5 {[%emt 0:0:1]} c6 {[%emt 0:0:6]} 17. Ba5 {[%emt 0:1:45]} Kh7 {[%emt 0:0:16]} 18. Rfd1 {[%emt 0:0:7]
} Bd7 {[%emt 0:1:6]} 19. Qe1 {[%emt 0:1:12]} Rg8 {[%emt 0:0:0]} 20. Bb6 {[%emt 0:0:21]} Be8 {[%emt 0:0:12]} 21. Qa5 {[%emt 0:0:53]} g5 {[%emt 0:1:51]} 22. Bc5 {[%emt 0:0:54]} Qf6 {[%emt 0:1:10]} 23. h5 {[%emt 0:0:0]} Qd8 {[%emt 0:0:32]} 24. Qxd8 {[%emt 0:0:39]} Rxd8 {[%emt 0:0:2]} 25. Nc4 {[%emt 0:0:17]} Bf8 {[%emt 0:1:2]} 26. Bb6 {[%emt 0:0:32]} Rc8 {[%emt 0:0:40]
} 27. e4 {[%emt 0:0:46]} Ng7 {[%emt 0:0:6]} 28. g4 {[%emt 0:0:0]} f5 {[%emt 0:0:1]} 29. f3 {[%emt 0:0:20]} Be7 {[%emt 0:0:2]} 30. Bc5 {[%emt 0:0:37]} Rc7 {[%emt 0:0:13]} 31. Bb6 {[%emt 0:0:16]} Rc8 {[%emt 0:0:1]
} 32. Ne5 {[%emt 0:0:15]} Rf8 {[%emt 0:0:19]} 33. Re1 {[%emt 0:0:0]} Bb4 {[%emt 0:1:13]} 34. Re2 {[%emt 0:0:15]} Bd6 {[%emt 0:1:3]} 35. Rd1 {[%emt 0:0:46]} fxe4 {[%emt 0:0:25]} 36. Rxe4 {[%emt 0:0:13]} Kg8 {[%emt 0:0:27]
} 37. Kf2 {[%emt 0:0:15]} Be7 {[%emt 0:1:18]} 38. Bf1 {[%emt 0:0:0]} Bf7 {[%emt 0:0:32]} 39. Bc4 {[%emt 0:0:12]} c5 {[%emt 0:0:4]} 40. Nxf7 {[%emt 0:0:30]} cxd4 {[%emt 0:0:10]} 41. Nxh6+ {[%emt 0:0:23]} Kh7 {[%emt 0:0:1]
} 42. Rdxd4 {[%emt 0:0:23]} Rc6 {[%emt 0:0:42]} 43. Rd7 {[%emt 0:0:20]
} Rxb6 {[%emt 0:0:7]} 44. Rxe7 {[%emt 0:0:3]} Kxh6 {[%emt 0:0:0]} 45. b3 {[%emt 0:0:0]} Rb4 {[%emt 0:0:33]} 46. Ke3 {[%emt 0:0:3]} b5 {[%emt 0:0:6]} 47. Bxe6 {[%emt 0:0:9]} Rxe4+ {[%emt 0:0:2]} 48. Kxe4 {[%emt 0:0:12]
} Rd8 {[%emt 0:0:7]} 49. Bd7 {[%emt 0:0:12]} Rf8 {[%emt 0:0:0]} 50. Ke3 {[%emt 0:0:18]} Rf6 {[%emt 0:0:3]} 51. Re4 {[%emt 0:0:32]} Rb6 {[%emt 0:0:14]} 52. b4 {[%emt 0:0:3]} Rd6 {[%emt 0:0:10]} 53. Rd4 {[%emt 0:0:0]} Rb6 {[%emt 0:0:5]} 54. Ke4 {[%emt 0:0:10]} Rf6 {[%emt 0:0:2]} 55. a3 {[%emt 0:0:14]} Rf4+ {[%emt 0:0:2]} 56. Ke3 {[%emt 0:0:3]} Rf6 {[%emt 0:0:1]
} 57. Rd5 {[%emt 0:0:8]} Rb6 {[%emt 0:0:7]} 58. Rc5 {[%emt 0:0:0]} Rb7 {[%emt 0:0:2]} 59. Rc6+ {[%emt 0:0:10]} Kh7 {[%emt 0:0:1]} 60. Bc8 {[%emt 0:0:3]} Re7+ {[%emt 0:0:4]} 61. Kf2 {[%emt 0:0:4]} Ne8 {[%emt 0:0:3]
} 62. Bf5+ {[%emt 0:0:5]} Kh8 {[%emt 0:0:1]} 63. Rh6+ {[%emt 0:0:4]
} Kg8 {[%emt 0:0:8]} 64. Rxa6 {[%emt 0:0:2]} Nc7 {[%emt 0:0:0]} 65. Rg6+ {[%emt 0:0:5]} 1-0

[Event "FIDE World Rapid-ch Open 2018"]
[White "AL-Sayed, Mohammed"]
[Black "Gasanov, Eldar"]
[Site "St. Petersburg"]
[Round "15.58"]
[Annotator "ChessBase"]
[Result "0-1"]
[Date "2018.12.28"]
[WhiteElo "2484"]
[BlackElo "2499"]
[PlyCount "74"]
[TimeControl "900+10"]

1. d4 {[%emt 0:0:0]} d6 {[%emt 0:0:0]} 2. e4 {[%emt 0:0:3]} g6 {[%emt 0:0:0]} 3. Nf3 {[%emt 0:0:10]} Nf6 {[%emt 0:0:7]} 4. Nc3 {[%emt 0:0:5]} Bg7 {[%emt 0:0:4]} 5. Be3 {[%emt 0:0:33]} a6 {[%emt 0:0:11]} 6. a4 {[%emt 0:0:3]
} 0-0 {[%emt 0:0:24]} 7. Be2 {[%emt 0:0:43]} e6 {[%emt 0:0:28]
} 8. Qd2 {[%emt 0:0:19]} b6 {[%emt 0:0:7]} 9. Bg5 {[%emt 0:0:42]} Bb7 {[%emt 0:0:25]
} 10. Qf4 {[%emt 0:0:5]} Nbd7 {[%emt 0:4:9]} 11. 0-0-0 {[%emt 0:4:52]
} Qb8 {[%emt 0:3:47]} 12. Qh4 {[%emt 0:0:38]} c5 {[%emt 0:0:0]} 13. Bh6 {[%emt 0:4:36]} cxd4 14. Rxd4 {[%emt 0:0:20]} b5 {[%emt 0:3:8]
} 15. Ng5 {[%emt 0:0:33]} Rd8 {[%emt 0:0:20]} 16. Rhd1 {[%emt 0:0:17]} Ne5 {[%emt 0:0:47]
} 17. f4 {[%emt 0:0:56]} Nc6 {[%emt 0:0:4]} 18. e5 {[%emt 0:0:0]} Nxd4 {[%emt 0:0:27]} 19. Rxd4 {[%emt 0:0:39]} dxe5 {[%emt 0:0:12]} 20. Rxd8+ {[%emt 0:0:34]} Qxd8 {[%emt 0:0:1]} 21. fxe5 {[%emt 0:1:0]} Nh5 {[%emt 0:0:6]} 22. Bxg7 {[%emt 0:0:7]} Kxg7 {[%emt 0:0:1]} 23. Qg4 {[%emt 0:1:7]
} Qb6 {[%emt 0:0:30]} 24. Nd1 {[%emt 0:0:14]} Rd8 {[%emt 0:0:0]} 25. Qh4 {[%emt 0:0:4]} Qd4 {[%emt 0:0:11]} 26. Nxe6+ {[%emt 0:0:3]} fxe6 {[%emt 0:0:3]} 27. Qe7+ {[%emt 0:0:1]} Kh8 {[%emt 0:0:45]} 28. Bxh5 {[%emt 0:0:6]
} Qd7 {[%emt 0:0:12]} 29. Qf6+ {[%emt 0:0:4]} Kg8 {[%emt 0:0:0]} 30. Bg4 {[%emt 0:0:1]} Re8 {[%emt 0:0:11]} 31. Ne3 {[%emt 0:0:11]} Qf7 {[%emt 0:0:3]} 32. Qg5 {[%emt 0:0:10]} bxa4 {[%emt 0:0:14]} 33. Be2 {[%emt 0:0:1]
} Qe7 {[%emt 0:0:3]} 34. Qg3 {[%emt 0:0:15]} a3 {[%emt 0:0:0]} 35. Kb1 {[%emt 0:0:10]} Qb4 {[%emt 0:0:7]} 36. Nc4 {[%emt 0:0:16]} Bd5 {[%emt 0:0:4]} 37. Nxa3 {[%emt 0:0:6]} Rb8 {[%emt 0:0:3]} 0-1

[Event "FIDE World Rapid-ch Open 2018"]
[White "Yakubboev, Nodirbek"]
[Black "Hakobyan, Aram"]
[Site "St. Petersburg"]
[Round "15.59"]
[Annotator "ChessBase"]
[Result "1/2-1/2"]
[Date "2018.12.28"]
[WhiteElo "2556"]
[BlackElo "2545"]
[PlyCount "84"]
[TimeControl "900+10"]

1. d4 {[%emt 0:0:0]} Nf6 {[%emt 0:0:0]} 2. Bg5 {[%emt 0:0:0]} d5 {[%emt 0:0:24]
} 3. e3 {[%emt 0:0:3]} c5 {[%emt 0:0:8]} 4. Bxf6 {[%emt 0:0:0]} gxf6 {[%emt 0:0:19]} 5. dxc5 {[%emt 0:0:6]} e6 {[%emt 0:0:20]} 6. c4 {[%emt 0:0:1]
} dxc4 {[%emt 0:0:13]} 7. Qa4+ {[%emt 0:0:2]} Nc6 {[%emt 0:0:0]} 8. Bxc4 {[%emt 0:0:28]} Bxc5 {[%emt 0:0:6]} 9. Nf3 {[%emt 0:0:34]} Qa5+ {[%emt 0:0:10]} 10. Nc3 {[%emt 0:0:41]} Qxa4 {[%emt 0:1:7]} 11. Nxa4 {[%emt 0:0:2]
} Bd6 {[%emt 0:0:1]} 12. Bb5 {[%emt 0:1:48]} Bd7 {[%emt 0:0:0]} 13. Ke2 {[%emt 0:0:49]} Ke7 {[%emt 0:0:21]} 14. Rac1 {[%emt 0:1:36]} a6 {[%emt 0:0:41]} 15. Bd3 {[%emt 0:1:0]} Nb4 {[%emt 0:0:3]} 16. Nc3 {[%emt 0:0:17]
} Nxd3 {[%emt 0:0:12]} 17. Kxd3 {[%emt 0:0:2]} Rac8 {[%emt 0:0:0]} 18. Rhd1 {[%emt 0:1:44]} Rhd8 {[%emt 0:0:17]} 19. Ke2 {[%emt 0:1:36]
} Bc6 {[%emt 0:0:53]} 20. g3 {[%emt 0:1:10]} b5 {[%emt 0:1:1]} 21. Nd4 {[%emt 0:0:20]
} Bb7 {[%emt 0:0:2]} 22. a3 {[%emt 0:0:20]} Be5 {[%emt 0:0:0]} 23. f4 {[%emt 0:0:25]} Bb8 {[%emt 0:0:30]} 24. Na2 {[%emt 0:0:17]} Ba7 {[%emt 0:1:2]} 25. Rxc8 Rxc8 {[%emt 0:0:3]} 26. Rc1 {[%emt 0:1:28]} Rxc1 {[%emt 0:1:37]
} 27. Nxc1 {[%emt 0:0:1]} Be4 {[%emt 0:0:4]} 28. Ncb3 {[%emt 0:0:42]
} f5 {[%emt 0:2:14]} 29. Nd2 {[%emt 0:0:53]} Bd5 {[%emt 0:0:0]} 30. Kd3 {[%emt 0:0:15]} f6 {[%emt 0:1:41]} 31. Kc3 {[%emt 0:0:16]} Kd6 {[%emt 0:0:28]} 32. Kd3 {[%emt 0:0:16]} Bb6 {[%emt 0:0:11]} 33. Kc3 {[%emt 0:0:15]
} Bg2 {[%emt 0:0:59]} 34. Kd3 {[%emt 0:0:28]} Kd5 {[%emt 0:0:0]} 35. Nc2 {[%emt 0:0:29]} Kd6 {[%emt 0:0:31]} 36. Nd4 {[%emt 0:0:5]} Kd5 {[%emt 0:0:21]} 37. Nc2 {[%emt 0:0:2]} Kd6 {[%emt 0:0:21]} 38. Nd4 {[%emt 0:0:4]
} h5 {[%emt 0:0:5]} 39. N4f3 {[%emt 0:1:30]} Kd5 {[%emt 0:0:0]} 40. Ke2 {[%emt 0:0:23]} e5 {[%emt 0:0:40]} 41. Ne1 {[%emt 0:0:31]} Be4 {[%emt 0:0:46]} 42. Nd3 {[%emt 0:0:3]} a5 {[%emt 0:0:36]} 1/2-1/2

[Event "FIDE World Rapid-ch Open 2018"]
[White "Mikhalevski, Victor"]
[Black "Aronian, Levon"]
[Site "St. Petersburg"]
[Round "15.60"]
[Annotator "ChessBase"]
[Result "0-1"]
[Date "2018.12.28"]
[WhiteElo "2579"]
[BlackElo "2765"]
[PlyCount "102"]
[TimeControl "900+10"]

1. d4 {[%emt 0:0:0]} Nf6 {[%emt 0:0:0]} 2. Nf3 {[%emt 0:0:0]} e6 {[%emt 0:0:0]
} 3. c4 {[%emt 0:0:0]} d5 {[%emt 0:0:0]} 4. g3 {[%emt 0:0:0]} dxc4 {[%emt 0:0:10]} 5. Bg2 {[%emt 0:0:5]} Nc6 {[%emt 0:0:5]} 6. Qa4 {[%emt 0:0:6]} Bb4+ {[%emt 0:0:2]} 7. Bd2 {[%emt 0:0:2]} Nd5 {[%emt 0:0:0]} 8. Bxb4 {[%emt 0:0:21]} Ndxb4 {[%emt 0:0:3]} 9. Na3 {[%emt 0:0:47]} 0-0 {[%emt 0:1:19]} 10. 0-0 {[%emt 0:0:11]} a6 {[%emt 0:0:47]} 11. Ne5 {[%emt 0:1:2]
} Nxe5 {[%emt 0:2:18]} 12. dxe5 {[%emt 0:0:34]} Qe7 {[%emt 0:0:0]} 13. Nxc4 {[%emt 0:1:20]} Bd7 {[%emt 0:0:43]} 14. Qb3 {[%emt 0:1:32]} Rab8 {[%emt 0:0:35]} 15. a3 {[%emt 0:2:42]} Nc6 {[%emt 0:0:29]} 16. Qc3 {[%emt 0:0:29]
} Rfd8 {[%emt 0:0:20]} 17. Rac1 {[%emt 0:0:40]} Be8 {[%emt 0:0:0]} 18. e3 {[%emt 0:0:23]} h6 {[%emt 0:1:40]} 19. h4 {[%emt 0:0:16]} Na7 {[%emt 0:1:15]} 20. Na5 {[%emt 0:0:21]} c5 {[%emt 0:0:18]} 21. Nc4 {[%emt 0:0:0]} Bc6 {[%emt 0:1:40]} 22. Bxc6 Nxc6 {[%emt 0:0:2]} 23. Nb6 {[%emt 0:0:0]} Qc7 {[%emt 0:0:42]} 24. Qxc5 {[%emt 0:0:2]} Qxe5 {[%emt 0:0:2]} 25. Qxe5 Nxe5 {[%emt 0:0:2]} 26. Rfd1 {[%emt 0:0:35]} g5 {[%emt 0:0:23]} 27. hxg5 {[%emt 0:0:24]} hxg5 {[%emt 0:0:2]} 28. Kf1 {[%emt 0:0:14]} Kg7 {[%emt 0:0:8]
} 29. Ke2 {[%emt 0:0:10]} Rxd1 {[%emt 0:0:4]} 30. Rxd1 {[%emt 0:0:10]
} Rh8 {[%emt 0:0:3]} 31. Rd4 {[%emt 0:1:30]} f5 {[%emt 0:0:0]} 32. Nc4 {[%emt 0:0:12]} Ng4 {[%emt 0:0:1]} 33. Rd7+ {[%emt 0:0:41]} Kf6 {[%emt 0:0:2]} 34. f3 {[%emt 0:0:3]} Rh2+ {[%emt 0:0:18]} 35. Ke1 {[%emt 0:0:11]
} b5 {[%emt 0:0:25]} 36. fxg4 {[%emt 0:0:20]} bxc4 {[%emt 0:0:0]} 37. gxf5 {[%emt 0:0:22]} Kxf5 {[%emt 0:1:2]} 38. Rd4 {[%emt 0:0:2]} Rxb2 {[%emt 0:0:3]} 39. Rxc4 {[%emt 0:0:18]} Rb3 {[%emt 0:0:7]} 40. Ra4 {[%emt 0:0:15]
} Rxe3+ {[%emt 0:0:13]} 41. Kf2 {[%emt 0:0:1]} Rb3 {[%emt 0:0:0]} 42. Rxa6 {[%emt 0:0:2]} e5 {[%emt 0:0:6]} 43. Ra4 {[%emt 0:0:58]} e4 {[%emt 0:0:24]} 44. Ra5+ {[%emt 0:0:14]} Kg4 {[%emt 0:0:2]} 45. Re5 {[%emt 0:0:2]
} Rf3+ {[%emt 0:0:7]} 46. Ke2 {[%emt 0:0:10]} Rxa3 {[%emt 0:0:0]} 47. Kf2 {[%emt 0:0:36]} Rf3+ {[%emt 0:0:14]} 48. Ke2 {[%emt 0:0:3]} Rf5 {[%emt 0:0:28]} 49. Rxe4+ {[%emt 0:0:12]} Kxg3 {[%emt 0:0:2]} 50. Re3+ {[%emt 0:0:19]} Kg2 {[%emt 0:0:1]} 51. Re4 {[%emt 0:0:2]} Rf4 {[%emt 0:0:0]} 0-1

[Event "FIDE World Rapid-ch Open 2018"]
[White "Miton, Kamil"]
[Black "Oganian, Miran"]
[Site "St. Petersburg"]
[Round "15.61"]
[Annotator "ChessBase"]
[Result "1/2-1/2"]
[Date "2018.12.28"]
[WhiteElo "2588"]
[BlackElo "2423"]
[PlyCount "66"]
[TimeControl "900+10"]

1. d4 {[%emt 0:0:0]} Nf6 {[%emt 0:0:0]} 2. c4 {[%emt 0:0:0]} e6 {[%emt 0:0:0]} 3. g3 {[%emt 0:0:0]} d5 {[%emt 0:0:1]} 4. Bg2 {[%emt 0:0:0]} Be7 {[%emt 0:0:1]} 5. Nf3 {[%emt 0:0:2]} 0-0 {[%emt 0:0:2]} 6. 0-0 {[%emt 0:0:0]} dxc4 {[%emt 0:0:1]} 7. Nc3 {[%emt 0:0:2]} Nc6 {[%emt 0:2:24]} 8. e3 {[%emt 0:0:3]} Rb8 {[%emt 0:0:34]} 9. Qa4 {[%emt 0:0:2]} a6 {[%emt 0:0:0]} 10. Qxc4 {[%emt 0:0:8]} b5 {[%emt 0:0:24]} 11. Qe2 {[%emt 0:0:11]} Bb7 {[%emt 0:0:21]} 12. Rd1 {[%emt 0:0:11]} Qc8 {[%emt 0:0:18]} 13. e4 {[%emt 0:0:25]
} Rd8 {[%emt 0:1:27]} 14. Bf4 {[%emt 0:0:46]} Nh5 {[%emt 0:0:0]} 15. Be3 {[%emt 0:0:32]} Nf6 {[%emt 0:0:2]} 16. Bg5 {[%emt 0:1:40]} h6 {[%emt 0:1:38]} 17. Bxf6 {[%emt 0:0:4]} Bxf6 {[%emt 0:0:2]} 18. e5 {[%emt 0:0:3]
} Be7 {[%emt 0:0:6]} 19. d5 {[%emt 0:0:7]} Nb4 {[%emt 0:0:0]} 20. dxe6 {[%emt 0:0:26]} Qxe6 {[%emt 0:0:17]} 21. Nd4 {[%emt 0:0:34]} Qg6 {[%emt 0:1:36]} 22. Bxb7 {[%emt 0:0:24]} Rxb7 {[%emt 0:0:3]} 23. Qf3 {[%emt 0:1:34]
} Rbb8 {[%emt 0:1:1]} 24. Nf5 {[%emt 0:3:0]} Bf8 {[%emt 0:0:0]} 25. Qe4 {[%emt 0:1:58]} c6 {[%emt 0:1:13]} 26. Ne2 {[%emt 0:1:15]} Nd5 {[%emt 0:0:40]} 27. Rac1 {[%emt 0:0:10]} Rbc8 {[%emt 0:0:44]} 28. Rd3 {[%emt 0:0:43]
} Re8 {[%emt 0:0:12]} 29. Ned4 {[%emt 0:0:46]} Nf6 {[%emt 0:0:0]} 30. Qf4 {[%emt 0:0:28]} Nd5 {[%emt 0:0:14]} 31. Qe4 {[%emt 0:0:7]} Nf6 {[%emt 0:0:1]} 32. Qf4 {[%emt 0:1:33]} Nd5 {[%emt 0:0:8]} 33. Qe4 {[%emt 0:0:45]
} Nf6 {[%emt 0:0:30]} 1/2-1/2

[Event "FIDE World Rapid-ch Open 2018"]
[White "Nozdrachev, Vladislav"]
[Black "Gareyev, Timur"]
[Site "St. Petersburg"]
[Round "15.62"]
[Annotator "ChessBase"]
[Result "0-1"]
[Date "2018.12.28"]
[WhiteElo "2486"]
[BlackElo "2569"]
[PlyCount "66"]
[TimeControl "900+10"]

1. e4 {[%emt 0:0:0]} e5 {[%emt 0:0:0]} 2. Nf3 {[%emt 0:0:0]} Nc6 {[%emt 0:0:0]
} 3. Bc4 {[%emt 0:0:0]} Bc5 {[%emt 0:0:3]} 4. d3 {[%emt 0:0:0]} Nf6 {[%emt 0:0:7]} 5. c3 {[%emt 0:0:7]} d6 {[%emt 0:0:9]} 6. a4 {[%emt 0:0:2]
} a6 {[%emt 0:0:7]} 7. 0-0 {[%emt 0:0:5]} Ba7 {[%emt 0:0:31]
} 8. Re1 {[%emt 0:0:31]} 0-0 {[%emt 0:0:33]} 9. h3 {[%emt 0:0:2]} Ne7 {[%emt 0:0:17]
} 10. Nbd2 {[%emt 0:0:24]} c6 {[%emt 0:0:12]} 11. Bb3 {[%emt 0:0:0]} Ng6 {[%emt 0:0:6]} 12. d4 {[%emt 0:0:6]} Re8 {[%emt 0:0:54]} 13. a5 {[%emt 0:0:32]} h6 {[%emt 0:0:42]} 14. Bc2 {[%emt 0:3:1]} Nh5 {[%emt 0:0:0]} 15. Nxe5 {[%emt 0:0:22]} dxe5 {[%emt 0:0:20]} 16. Qxh5 {[%emt 0:0:0]} exd4 {[%emt 0:0:1]} 17. Nf3 {[%emt 0:0:32]} c5 {[%emt 0:2:58]} 18. cxd4 {[%emt 0:0:28]} cxd4 {[%emt 0:0:1]} 19. Bd3 {[%emt 0:0:16]} Be6 {[%emt 0:2:34]
} 20. e5 {[%emt 0:0:4]} Qe7 {[%emt 0:0:5]} 21. Nh2 {[%emt 0:0:0]} Rac8 {[%emt 0:0:26]} 22. Ng4 {[%emt 0:0:40]} Rxc1 {[%emt 0:0:59]} 23. Raxc1 {[%emt 0:2:32]} Nf4 {[%emt 0:0:4]} 24. Nf6+ {[%emt 0:0:2]} Qxf6 25. exf6 {[%emt 0:0:10]} Nxh5 {[%emt 0:1:26]} 26. Rc7 {[%emt 0:0:2]} Nf4 {[%emt 0:0:24]
} 27. Bf1 {[%emt 0:2:11]} d3 {[%emt 0:0:19]} 28. Rxb7 {[%emt 0:0:0]} Bc5 {[%emt 0:0:29]} 29. b4 {[%emt 0:1:38]} Bd4 {[%emt 0:0:26]} 30. Re4 {[%emt 0:0:37]} Rd8 {[%emt 0:1:28]} 31. Rxf4 {[%emt 0:0:2]} Be5 {[%emt 0:1:10]
} 32. Bxd3 {[%emt 0:2:51]} Rxd3 {[%emt 0:0:34]} 33. g3 {[%emt 0:0:2]
} Rd1+ {[%emt 0:0:13]} 0-1